[Event "Late-Titled-Tuesday-Blitz-December-26-2023"]
[Site "Chess.com"]
[Date "2023.12.26"]
[Round "4"]
[White "kasparicy"]
[Black "dmarcolino"]
[Result "1-0"]
[WhiteElo "2434"]
[BlackElo "2122"]
[TimeControl "180+1"]
[EndTime "14:38:35 PST"]
[Termination "kasparicy won by resignation"]

1. e4 {[%clk 0:03:00.9]} 1... c6 {[%clk 0:02:59.2]} 2. d4 {[%clk 0:03:00.1]}
2... d5 {[%clk 0:03:00.1]} 3. f3 {[%clk 0:02:59.4]} 3... e6 {[%clk 0:02:59.5]}
4. Nc3 {[%clk 0:02:57.6]} 4... Bb4 {[%clk 0:02:51.7]} 5. Be3 {[%clk 0:02:56.3]}
5... Nd7 {[%clk 0:02:48.4]} 6. Bd3 {[%clk 0:02:53.5]} 6... Ne7 {[%clk
0:02:47.8]} 7. Ne2 {[%clk 0:02:53.6]} 7... Ng6 {[%clk 0:02:43.8]} 8. a3 {[%clk
0:02:53.4]} 8... Ba5 {[%clk 0:02:42.5]} 9. O-O {[%clk 0:02:51.6]} 9... O-O
{[%clk 0:02:41]} 10. e5 {[%clk 0:02:50.2]} 10... c5 {[%clk 0:02:25.6]} 11. f4
{[%clk 0:02:39.4]} 11... cxd4 {[%clk 0:02:18.5]} 12. Nxd4 {[%clk 0:02:39.3]}
12... Bxc3 {[%clk 0:02:11.2]} 13. bxc3 {[%clk 0:02:38.5]} 13... Nc5 {[%clk
0:02:11.8]} 14. Qh5 {[%clk 0:02:37.2]} 14... Nxd3 {[%clk 0:02:08.8]} 15. cxd3
{[%clk 0:02:36.5]} 15... b6 {[%clk 0:02:03.2]} 16. Rf3 {[%clk 0:02:26.6]} 16...
Re8 {[%clk 0:01:38.2]} 17. Rh3 {[%clk 0:02:23.2]} 17... Nf8 {[%clk 0:01:37.9]}
18. Rg3 {[%clk 0:02:21]} 18... f5 {[%clk 0:01:26.7]} 19. Nb5 {[%clk 0:02:04.7]}
19... Ba6 {[%clk 0:01:15.5]} 20. Nd6 {[%clk 0:02:04.9]} 20... Re7 {[%clk
0:01:13.6]} 21. c4 {[%clk 0:01:32.9]} 21... dxc4 {[%clk 0:00:51.2]} 22. dxc4
{[%clk 0:01:33.8]} 22... Qc7 {[%clk 0:00:47.3]} 23. a4 {[%clk 0:01:30.6]} 23...
Rd8 {[%clk 0:00:42.4]} 24. h3 {[%clk 0:01:22.1]} 24... Rxd6 {[%clk 0:00:41.6]}
25. exd6 {[%clk 0:01:21.6]} 25... Qxd6 {[%clk 0:00:42.5]} 26. Rc1 {[%clk
0:01:14.3]} 26... Rc7 {[%clk 0:00:33.9]} 27. Qe8 {[%clk 0:01:08.8]} 27... Rxc4
{[%clk 0:00:22.2]} 28. Rxc4 {[%clk 0:01:03.7]} 28... Bxc4 {[%clk 0:00:23.1]} 29.
Kh2 {[%clk 0:00:59.2]} 29... Bd5 {[%clk 0:00:18]} 30. Bd4 {[%clk 0:00:55.1]}
30... g6 {[%clk 0:00:12.6]} 31. Be5 {[%clk 0:00:55.2]} 31... Qd7 {[%clk
0:00:11.4]} 32. Qb8 {[%clk 0:00:51.3]} 32... Qxa4 {[%clk 0:00:10.2]} 33. Bd6
{[%clk 0:00:46.5]} 1-0

[Event "Late-Titled-Tuesday-Blitz-December-26-2023"]
[Site "Chess.com"]
[Date "2023.12.26"]
[Round "4"]
[White "protectiago"]
[Black "IngOscarArdila"]
[Result "0-1"]
[WhiteElo "2057"]
[BlackElo "2325"]
[TimeControl "180+1"]
[EndTime "14:38:49 PST"]
[Termination "IngOscarArdila won on time"]

1. d4 {[%clk 0:02:57.2]} 1... h6 {[%clk 0:02:58.6]} 2. c4 {[%clk 0:02:55.2]}
2... a6 {[%clk 0:02:59.5]} 3. g3 {[%clk 0:02:54.2]} 3... e6 {[%clk 0:03:00]} 4.
Bg2 {[%clk 0:02:54.3]} 4... Be7 {[%clk 0:03:00.5]} 5. Nc3 {[%clk 0:02:54.5]}
5... Nf6 {[%clk 0:03:00.9]} 6. e4 {[%clk 0:02:54.6]} 6... d6 {[%clk 0:03:01.1]}
7. Nf3 {[%clk 0:02:53.3]} 7... O-O {[%clk 0:03:01.5]} 8. O-O {[%clk 0:02:53.4]}
8... Nbd7 {[%clk 0:03:01.9]} 9. Re1 {[%clk 0:02:53.5]} 9... c6 {[%clk
0:03:01.6]} 10. Qc2 {[%clk 0:02:53.3]} 10... Qc7 {[%clk 0:03:01.4]} 11. b3
{[%clk 0:02:15.1]} 11... e5 {[%clk 0:02:35]} 12. Ba3 {[%clk 0:02:02.4]} 12...
Re8 {[%clk 0:02:31.9]} 13. Rad1 {[%clk 0:02:01.8]} 13... Nf8 {[%clk 0:02:20.7]}
14. h3 {[%clk 0:01:54]} 14... Ng6 {[%clk 0:02:19.5]} 15. dxe5 {[%clk 0:01:48.9]}
15... dxe5 {[%clk 0:02:19.2]} 16. Bxe7 {[%clk 0:01:47]} 16... Qxe7 {[%clk
0:02:19.3]} 17. Rd2 {[%clk 0:01:41.2]} 17... Be6 {[%clk 0:02:17.4]} 18. Red1
{[%clk 0:01:41.2]} 18... Rad8 {[%clk 0:02:16.5]} 19. Rxd8 {[%clk 0:01:03.7]}
19... Rxd8 {[%clk 0:02:15.6]} 20. Rxd8+ {[%clk 0:01:01.6]} 20... Qxd8 {[%clk
0:02:15.2]} 21. Qd2 {[%clk 0:00:57.7]} 21... Qa5 {[%clk 0:02:12]} 22. Qb2 {[%clk
0:00:43.7]} 22... Qc5 {[%clk 0:02:01.6]} 23. Na4 {[%clk 0:00:37.9]} 23... Qd6
{[%clk 0:01:56.9]} 24. c5 {[%clk 0:00:33.6]} 24... Qd1+ {[%clk 0:01:47.7]} 25.
Kh2 {[%clk 0:00:33.6]} 25... Nxe4 {[%clk 0:01:47.1]} 26. Nxe5 {[%clk 0:00:15]}
26... Nxe5 {[%clk 0:01:42]} 27. Bxe4 {[%clk 0:00:14.9]} 27... f6 {[%clk
0:01:28.6]} 28. Nc3 {[%clk 0:00:11.6]} 28... Qe1 {[%clk 0:01:27.2]} 29. Bg2
{[%clk 0:00:11.2]} 29... Nd3 {[%clk 0:01:25.5]} 30. Qe2 {[%clk 0:00:10.4]} 30...
Qxe2 {[%clk 0:01:22.9]} 31. Nxe2 {[%clk 0:00:10.7]} 31... Nxf2 {[%clk
0:01:23.2]} 32. Nf4 {[%clk 0:00:10.5]} 32... Bf7 {[%clk 0:01:21.3]} 33. Kg1
{[%clk 0:00:09.6]} 33... Nd1 {[%clk 0:01:20.8]} 34. Bf3 {[%clk 0:00:08.1]} 34...
Nc3 {[%clk 0:01:20.2]} 35. a3 {[%clk 0:00:06.4]} 35... Bxb3 {[%clk 0:01:17.8]}
36. Nd3 {[%clk 0:00:05.7]} 36... Bd5 {[%clk 0:01:14.3]} 37. Bg4 {[%clk
0:00:05.5]} 37... Be4 {[%clk 0:01:04.5]} 38. Nb2 {[%clk 0:00:03.5]} 38... f5
{[%clk 0:01:02.8]} 39. Bh5 {[%clk 0:00:01.5]} 39... Kf8 {[%clk 0:01:00.8]} 40.
Bg6 {[%clk 0:00:01.5]} 40... Ke7 {[%clk 0:00:59.5]} 41. g4 {[%clk 0:00:01.9]}
41... Kf6 {[%clk 0:00:57.4]} 0-1

[Event "Late-Titled-Tuesday-Blitz-December-26-2023"]
[Site "Chess.com"]
[Date "2023.12.26"]
[Round "4"]
[White "Leo_C"]
[Black "PoXerStar"]
[Result "1-0"]
[WhiteElo "2626"]
[BlackElo "2429"]
[TimeControl "180+1"]
[EndTime "14:38:52 PST"]
[Termination "Leo_C won on time"]

1. e4 {[%clk 0:03:00.9]} 1... c5 {[%clk 0:02:54]} 2. Nf3 {[%clk 0:02:59.6]} 2...
g6 {[%clk 0:02:52.2]} 3. c3 {[%clk 0:02:59.5]} 3... d5 {[%clk 0:02:47.3]} 4. e5
{[%clk 0:02:59.6]} 4... Nc6 {[%clk 0:02:38.8]} 5. d4 {[%clk 0:02:58.6]} 5... Bg4
{[%clk 0:02:33]} 6. Nbd2 {[%clk 0:02:54.1]} 6... f6 {[%clk 0:02:09.9]} 7. h3
{[%clk 0:02:40.3]} 7... Bd7 {[%clk 0:02:05.7]} 8. exf6 {[%clk 0:02:29.3]} 8...
Nxf6 {[%clk 0:02:05.4]} 9. Bd3 {[%clk 0:02:28.9]} 9... Bg7 {[%clk 0:01:58.9]}
10. O-O {[%clk 0:02:27.3]} 10... O-O {[%clk 0:01:58.7]} 11. Re1 {[%clk
0:02:26.1]} 11... Nh5 {[%clk 0:01:41.9]} 12. dxc5 {[%clk 0:02:11.4]} 12... e5
{[%clk 0:01:41.1]} 13. Bf1 {[%clk 0:02:03.7]} 13... e4 {[%clk 0:01:40.5]} 14.
Nh2 {[%clk 0:02:02.9]} 14... Qh4 {[%clk 0:00:49.5]} 15. Ndf3 {[%clk 0:01:14.2]}
15... exf3 {[%clk 0:00:45.5]} 16. Qxd5+ {[%clk 0:01:06.2]} 16... Kh8 {[%clk
0:00:44.9]} 17. Nxf3 {[%clk 0:01:06.2]} 17... Rxf3 {[%clk 0:00:41.9]} 18. Qxf3
{[%clk 0:01:05.6]} 18... Rf8 {[%clk 0:00:40.2]} 19. Qe2 {[%clk 0:01:00.4]} 19...
Nf4 {[%clk 0:00:29.5]} 20. Bxf4 {[%clk 0:00:59.6]} 20... Qxf4 {[%clk 0:00:30]}
21. Rad1 {[%clk 0:00:55.6]} 21... Ne5 {[%clk 0:00:25.7]} 22. Qe3 {[%clk
0:00:47.1]} 22... Qf7 {[%clk 0:00:21.4]} 23. f4 {[%clk 0:00:42.2]} 23... Nc6
{[%clk 0:00:17]} 24. g3 {[%clk 0:00:34.4]} 24... g5 {[%clk 0:00:05.9]} 25. fxg5
{[%clk 0:00:27.6]} 25... Ne5 {[%clk 0:00:05.8]} 26. Bg2 {[%clk 0:00:28.2]} 26...
Bxh3 {[%clk 0:00:01.8]} 27. Rf1 {[%clk 0:00:20.2]} 1-0

[Event "Late-Titled-Tuesday-Blitz-December-26-2023"]
[Site "Chess.com"]
[Date "2023.12.26"]
[Round "4"]
[White "Alex_Banzea"]
[Black "PapaieDudu"]
[Result "0-1"]
[WhiteElo "2635"]
[BlackElo "2511"]
[TimeControl "180+1"]
[EndTime "14:38:58 PST"]
[Termination "PapaieDudu won on time"]

1. d4 {[%clk 0:03:00.9]} 1... d5 {[%clk 0:03:00.3]} 2. Nc3 {[%clk 0:03:00.7]}
2... Nf6 {[%clk 0:03:00.3]} 3. Bf4 {[%clk 0:03:01.4]} 3... c6 {[%clk 0:02:59.5]}
4. e3 {[%clk 0:03:01.8]} 4... Bf5 {[%clk 0:02:56.9]} 5. f3 {[%clk 0:03:02.3]}
5... e6 {[%clk 0:02:56.5]} 6. g4 {[%clk 0:03:02.9]} 6... Bg6 {[%clk 0:02:55.9]}
7. h4 {[%clk 0:03:03.6]} 7... h5 {[%clk 0:02:54]} 8. g5 {[%clk 0:03:04.2]} 8...
Nfd7 {[%clk 0:02:52.7]} 9. Bd3 {[%clk 0:03:04.9]} 9... Bxd3 {[%clk 0:02:51.5]}
10. Qxd3 {[%clk 0:03:05.8]} 10... c5 {[%clk 0:02:51.6]} 11. g6 {[%clk
0:02:53.3]} 11... f6 {[%clk 0:02:48.3]} 12. Nge2 {[%clk 0:02:35.2]} 12... Nc6
{[%clk 0:02:38.3]} 13. O-O-O {[%clk 0:02:16.5]} 13... Qa5 {[%clk 0:02:28.7]} 14.
e4 {[%clk 0:02:11.9]} 14... Nb4 {[%clk 0:02:13.7]} 15. Qe3 {[%clk 0:01:49.1]}
15... O-O-O {[%clk 0:01:55.5]} 16. a3 {[%clk 0:01:34.8]} 16... Nc6 {[%clk
0:01:25]} 17. exd5 {[%clk 0:01:34.7]} 17... exd5 {[%clk 0:01:23.8]} 18. Nxd5
{[%clk 0:01:33.9]} 18... cxd4 {[%clk 0:01:22.8]} 19. Qe6 {[%clk 0:01:21]} 19...
Bxa3 {[%clk 0:01:06.4]} 20. bxa3 {[%clk 0:01:20]} 20... Qxa3+ {[%clk 0:01:05.1]}
21. Kd2 {[%clk 0:01:01.6]} 21... Qa5+ {[%clk 0:00:42.4]} 22. c3 {[%clk 0:00:49]}
22... Rhe8 {[%clk 0:00:27.3]} 23. Qf5 {[%clk 0:00:01.8]} 23... Qa2+ {[%clk
0:00:15]} 24. Kc1 {[%clk 0:00:02.3]} 24... Qa1+ {[%clk 0:00:08.6]} 0-1

[Event "Late-Titled-Tuesday-Blitz-December-26-2023"]
[Site "Chess.com"]
[Date "2023.12.26"]
[Round "4"]
[White "MasterofMasters2006"]
[Black "nickmatta"]
[Result "0-1"]
[WhiteElo "2078"]
[BlackElo "2429"]
[TimeControl "180+1"]
[EndTime "14:39:00 PST"]
[Termination "nickmatta won by checkmate"]

1. d4 {[%clk 0:03:00.9]} 1... Nf6 {[%clk 0:02:59.4]} 2. c4 {[%clk 0:03:00.3]}
2... g6 {[%clk 0:03:00]} 3. Nc3 {[%clk 0:02:58.2]} 3... d5 {[%clk 0:03:00.2]} 4.
Nf3 {[%clk 0:02:57.8]} 4... Bg7 {[%clk 0:02:59.9]} 5. Qb3 {[%clk 0:02:57]} 5...
dxc4 {[%clk 0:02:58.3]} 6. Qxc4 {[%clk 0:02:57.9]} 6... O-O {[%clk 0:02:58.9]}
7. e4 {[%clk 0:02:57.5]} 7... a6 {[%clk 0:02:59.1]} 8. Be2 {[%clk 0:02:56]} 8...
b5 {[%clk 0:02:58]} 9. Qb3 {[%clk 0:02:49.2]} 9... c5 {[%clk 0:02:58.2]} 10.
dxc5 {[%clk 0:02:48.2]} 10... Be6 {[%clk 0:02:58.9]} 11. Qc2 {[%clk 0:02:47.5]}
11... Qc7 {[%clk 0:02:50.6]} 12. Be3 {[%clk 0:02:31.4]} 12... Nbd7 {[%clk
0:02:50.1]} 13. O-O {[%clk 0:02:08.2]} 13... Nxc5 {[%clk 0:02:32.6]} 14. e5
{[%clk 0:01:46.5]} 14... Ng4 {[%clk 0:02:21.3]} 15. Bd4 {[%clk 0:01:34.6]} 15...
Nxe5 {[%clk 0:02:16.4]} 16. Nxb5 {[%clk 0:01:19.6]} 16... axb5 {[%clk
0:02:15.4]} 17. Qxc5 {[%clk 0:01:10.4]} 17... Qxc5 {[%clk 0:01:33.7]} 18. Bxc5
{[%clk 0:01:11.3]} 18... Nxf3+ {[%clk 0:01:33.6]} 19. Bxf3 {[%clk 0:01:07.8]}
19... Bxb2 {[%clk 0:01:34.5]} 20. Rab1 {[%clk 0:01:04.3]} 20... Rxa2 {[%clk
0:01:31.5]} 21. Bxe7 {[%clk 0:01:02]} 21... Rc8 {[%clk 0:01:26.9]} 22. Rfe1
{[%clk 0:00:47.5]} 22... Bd4 {[%clk 0:01:22]} 23. Bh4 {[%clk 0:00:41.3]} 23...
b4 {[%clk 0:01:15.8]} 24. Rxb4 {[%clk 0:00:28.8]} 24... Bc3 {[%clk 0:01:16]} 25.
Rbb1 {[%clk 0:00:29.3]} 25... Bxe1 {[%clk 0:01:15.9]} 26. Rxe1 {[%clk
0:00:30.2]} 26... h6 {[%clk 0:01:12]} 27. h3 {[%clk 0:00:30.2]} 27... g5 {[%clk
0:01:04.1]} 28. Bg3 {[%clk 0:00:30.4]} 28... Rcc2 {[%clk 0:01:02.1]} 29. h4
{[%clk 0:00:25.2]} 29... g4 {[%clk 0:01:00.1]} 30. Be4 {[%clk 0:00:20.1]} 30...
Re2 {[%clk 0:01:00.3]} 31. Rxe2 {[%clk 0:00:19.6]} 31... Rxe2 {[%clk 0:01:01.2]}
32. Bd3 {[%clk 0:00:19.6]} 32... Rd2 {[%clk 0:01:01.1]} 33. Bb5 {[%clk 0:00:19]}
33... h5 {[%clk 0:01:00.9]} 34. Kh2 {[%clk 0:00:19.1]} 34... Bd5 {[%clk
0:01:00.2]} 35. Bd7 {[%clk 0:00:18.5]} 35... Bxg2 {[%clk 0:00:54.9]} 36. Kxg2
{[%clk 0:00:18]} 36... Rxd7 {[%clk 0:00:54.7]} 37. Kf1 {[%clk 0:00:16.7]} 37...
Rd2 {[%clk 0:00:54.2]} 38. Ke1 {[%clk 0:00:16.2]} 38... Ra2 {[%clk 0:00:54.1]}
39. Be5 {[%clk 0:00:15.7]} 39... Kh7 {[%clk 0:00:54.4]} 40. Bg3 {[%clk
0:00:16.2]} 40... Kg6 {[%clk 0:00:55]} 41. Kf1 {[%clk 0:00:16.7]} 41... Kf5
{[%clk 0:00:55.6]} 42. Kg2 {[%clk 0:00:17]} 42... Ke4 {[%clk 0:00:56.3]} 43. Bd6
{[%clk 0:00:16.9]} 43... f5 {[%clk 0:00:56.7]} 44. Kg3 {[%clk 0:00:15.8]} 44...
Rd2 {[%clk 0:00:56.7]} 45. Bc7 {[%clk 0:00:14.8]} 45... Rd3+ {[%clk 0:00:56.1]}
46. Kg2 {[%clk 0:00:15.3]} 46... f4 {[%clk 0:00:56.7]} 47. Bd8 {[%clk
0:00:14.9]} 47... Rh3 {[%clk 0:00:55.9]} 48. Bg5 {[%clk 0:00:14.7]} 48... Rd3
{[%clk 0:00:52.5]} 49. Be7 {[%clk 0:00:13.8]} 49... Rd2 {[%clk 0:00:52.5]} 50.
Kg1 {[%clk 0:00:12.2]} 50... Kf3 {[%clk 0:00:51.9]} 51. Bc5 {[%clk 0:00:12.8]}
51... g3 {[%clk 0:00:51.4]} 52. fxg3 {[%clk 0:00:12.6]} 52... fxg3 {[%clk
0:00:52.1]} 53. Kf1 {[%clk 0:00:12.3]} 53... Rd1# {[%clk 0:00:52.3]} 0-1

[Event "Late-Titled-Tuesday-Blitz-December-26-2023"]
[Site "Chess.com"]
[Date "2023.12.26"]
[Round "4"]
[White "alvarorodriguezavila"]
[Black "powermove"]
[Result "1-0"]
[WhiteElo "2283"]
[BlackElo "2023"]
[TimeControl "180+1"]
[EndTime "14:39:04 PST"]
[Termination "alvarorodriguezavila won on time"]

1. b3 {[%clk 0:03:00.9]} 1... Nf6 {[%clk 0:02:57.5]} 2. Bb2 {[%clk 0:03:01.8]}
2... g6 {[%clk 0:02:57.8]} 3. Bxf6 {[%clk 0:03:01.3]} 3... exf6 {[%clk
0:02:57.5]} 4. c4 {[%clk 0:03:02.2]} 4... Bg7 {[%clk 0:02:55]} 5. Nc3 {[%clk
0:03:02.9]} 5... O-O {[%clk 0:02:52.5]} 6. Rc1 {[%clk 0:03:03.4]} 6... b6 {[%clk
0:02:46.3]} 7. Nf3 {[%clk 0:03:02.6]} 7... Bb7 {[%clk 0:02:43.8]} 8. e3 {[%clk
0:03:03.1]} 8... d6 {[%clk 0:02:28.5]} 9. Be2 {[%clk 0:03:02.9]} 9... Nd7 {[%clk
0:02:28.6]} 10. O-O {[%clk 0:03:03.4]} 10... Ne5 {[%clk 0:02:25.8]} 11. d4
{[%clk 0:03:03.1]} 11... Nd7 {[%clk 0:02:18]} 12. Nd2 {[%clk 0:02:42.6]} 12...
f5 {[%clk 0:02:14.7]} 13. Bf3 {[%clk 0:02:42.9]} 13... Bxf3 {[%clk 0:02:11.2]}
14. Qxf3 {[%clk 0:02:43.2]} 14... Nf6 {[%clk 0:02:09.8]} 15. Rfd1 {[%clk
0:02:39]} 15... c6 {[%clk 0:02:08.1]} 16. Qxc6 {[%clk 0:02:36]} 16... Re8 {[%clk
0:02:02.7]} 17. Qf3 {[%clk 0:02:35.9]} 17... Qd7 {[%clk 0:01:55.1]} 18. h3
{[%clk 0:02:35.5]} 18... Rad8 {[%clk 0:01:44.6]} 19. e4 {[%clk 0:02:27.6]} 19...
fxe4 {[%clk 0:01:26.5]} 20. Ndxe4 {[%clk 0:02:28.5]} 20... Nxe4 {[%clk
0:01:20.8]} 21. Nxe4 {[%clk 0:02:29.4]} 21... d5 {[%clk 0:01:20.4]} 22. Nf6+
{[%clk 0:02:19.7]} 22... Bxf6 {[%clk 0:01:08.2]} 23. Qxf6 {[%clk 0:02:20.6]}
23... Re6 {[%clk 0:01:06.9]} 24. Qf3 {[%clk 0:02:20.3]} 24... dxc4 {[%clk
0:01:07.1]} 25. d5 {[%clk 0:02:16.1]} 25... Re5 {[%clk 0:00:54.8]} 26. bxc4
{[%clk 0:02:16.3]} 26... Qd6 {[%clk 0:00:51.7]} 27. Re1 {[%clk 0:02:13]} 27...
Rde8 {[%clk 0:00:47.5]} 28. Rxe5 {[%clk 0:02:08.1]} 28... Rxe5 {[%clk
0:00:43.6]} 29. Qg3 {[%clk 0:01:38.5]} 29... Qe7 {[%clk 0:00:31.7]} 30. Kh2
{[%clk 0:01:35]} 30... Re2 {[%clk 0:00:22.8]} 31. Rd1 {[%clk 0:01:27]} 31...
Rxa2 {[%clk 0:00:18.5]} 32. d6 {[%clk 0:01:27.4]} 32... Qd7 {[%clk 0:00:18.3]}
33. Qe5 {[%clk 0:01:24.2]} 33... Rxf2 {[%clk 0:00:08.5]} 34. Qe7 {[%clk
0:01:15.8]} 34... Qc6 {[%clk 0:00:08.5]} 35. Qg5 {[%clk 0:00:47.7]} 35... Qd7
{[%clk 0:00:07.6]} 36. Qe5 {[%clk 0:00:39.5]} 36... Qc6 {[%clk 0:00:04.2]} 37.
Qg3 {[%clk 0:00:38]} 37... Re2 {[%clk 0:00:03]} 38. d7 {[%clk 0:00:35.1]} 1-0

[Event "Late-Titled-Tuesday-Blitz-December-26-2023"]
[Site "Chess.com"]
[Date "2023.12.26"]
[Round "4"]
[White "frederiksvane"]
[Black "baag"]
[Result "0-1"]
[WhiteElo "2965"]
[BlackElo "2850"]
[TimeControl "180+1"]
[EndTime "14:39:05 PST"]
[Termination "baag won on time"]

1. e4 {[%clk 0:03:00.9]} 1... c6 {[%clk 0:03:00.4]} 2. Nf3 {[%clk 0:03:00.5]}
2... d5 {[%clk 0:03:01.3]} 3. exd5 {[%clk 0:03:01.2]} 3... cxd5 {[%clk
0:03:02.2]} 4. d4 {[%clk 0:03:02.1]} 4... Nf6 {[%clk 0:03:00.8]} 5. c3 {[%clk
0:03:02.5]} 5... Nc6 {[%clk 0:02:57.2]} 6. Ne5 {[%clk 0:03:02.5]} 6... a6 {[%clk
0:02:47.1]} 7. Bd3 {[%clk 0:03:02.2]} 7... g6 {[%clk 0:02:47.2]} 8. O-O {[%clk
0:02:59.9]} 8... Bg7 {[%clk 0:02:47.8]} 9. Re1 {[%clk 0:03:00.1]} 9... O-O
{[%clk 0:02:48.5]} 10. Bf4 {[%clk 0:02:59.5]} 10... Bf5 {[%clk 0:02:48.7]} 11.
Bf1 {[%clk 0:02:55.1]} 11... Ne4 {[%clk 0:02:38.5]} 12. Nd2 {[%clk 0:02:53.4]}
12... Nxe5 {[%clk 0:02:37.4]} 13. Bxe5 {[%clk 0:02:45]} 13... Bxe5 {[%clk
0:02:31.6]} 14. dxe5 {[%clk 0:02:44.3]} 14... Qb6 {[%clk 0:02:26.3]} 15. Nxe4
{[%clk 0:02:41.2]} 15... Bxe4 {[%clk 0:02:21.5]} 16. Qd2 {[%clk 0:02:32]} 16...
Rfd8 {[%clk 0:02:20.7]} 17. Rad1 {[%clk 0:02:31.2]} 17... Bf5 {[%clk 0:02:12.1]}
18. Re3 {[%clk 0:02:22.2]} 18... Rac8 {[%clk 0:02:10.5]} 19. Re2 {[%clk
0:01:37.7]} 19... Bg4 {[%clk 0:02:06.4]} 20. h3 {[%clk 0:01:33.5]} 20... Bxe2
{[%clk 0:02:06.2]} 21. Bxe2 {[%clk 0:01:34.4]} 21... e6 {[%clk 0:01:48.9]} 22.
h4 {[%clk 0:01:34.3]} 22... Qc7 {[%clk 0:01:41.7]} 23. Qf4 {[%clk 0:01:33]}
23... Qe7 {[%clk 0:01:29]} 24. Rd4 {[%clk 0:01:19.3]} 24... b5 {[%clk 0:01:26]}
25. g3 {[%clk 0:01:15.6]} 25... Rb8 {[%clk 0:01:19.1]} 26. a3 {[%clk 0:01:15.2]}
26... a5 {[%clk 0:01:18.3]} 27. Qe3 {[%clk 0:01:08.9]} 27... b4 {[%clk
0:01:05.9]} 28. cxb4 {[%clk 0:01:09.1]} 28... axb4 {[%clk 0:01:06.8]} 29. a4
{[%clk 0:01:10]} 29... Qc5 {[%clk 0:01:06.9]} 30. h5 {[%clk 0:01:06.5]} 30... b3
{[%clk 0:01:01.5]} 31. h6 {[%clk 0:01:02.7]} 31... Rb4 {[%clk 0:00:56.5]} 32.
Qg5 {[%clk 0:00:54.1]} 32... Rxd4 {[%clk 0:00:50.1]} 33. Qxd8+ {[%clk
0:00:53.9]} 33... Qf8 {[%clk 0:00:50.9]} 34. Qa5 {[%clk 0:00:34.1]} 34... Qxh6
{[%clk 0:00:46.4]} 35. Qd8+ {[%clk 0:00:04.4]} 35... Qf8 {[%clk 0:00:46.3]} 36.
Qa5 {[%clk 0:00:05.1]} 36... Qb8 {[%clk 0:00:42.6]} 37. Qc3 {[%clk 0:00:02.3]}
37... Rxa4 {[%clk 0:00:39.1]} 38. Kg2 {[%clk 0:00:01.7]} 38... Re4 {[%clk
0:00:31.6]} 39. Bf3 {[%clk 0:00:02.1]} 39... Rxe5 {[%clk 0:00:30]} 0-1

[Event "Late-Titled-Tuesday-Blitz-December-26-2023"]
[Site "Chess.com"]
[Date "2023.12.26"]
[Round "4"]
[White "AkatsukiLogHorizon"]
[Black "monalize"]
[Result "0-1"]
[WhiteElo "2214"]
[BlackElo "2472"]
[TimeControl "180+1"]
[EndTime "14:39:09 PST"]
[Termination "monalize won by resignation"]

1. e4 {[%clk 0:03:00.9]} 1... c5 {[%clk 0:02:56.8]} 2. Nf3 {[%clk 0:03:00.2]}
2... d6 {[%clk 0:02:56.7]} 3. d4 {[%clk 0:02:59]} 3... cxd4 {[%clk 0:02:56.9]}
4. Nxd4 {[%clk 0:02:58.2]} 4... Nf6 {[%clk 0:02:56.8]} 5. Nc3 {[%clk 0:02:58.1]}
5... a6 {[%clk 0:02:57]} 6. Be3 {[%clk 0:02:57.7]} 6... Ng4 {[%clk 0:02:55.9]}
7. Bg5 {[%clk 0:02:53.8]} 7... h6 {[%clk 0:02:55.3]} 8. Bh4 {[%clk 0:02:53.3]}
8... g5 {[%clk 0:02:55.2]} 9. Bg3 {[%clk 0:02:52.5]} 9... Bg7 {[%clk 0:02:55.3]}
10. Be2 {[%clk 0:02:25]} 10... Ne5 {[%clk 0:02:53.3]} 11. Qd2 {[%clk 0:02:21.1]}
11... Nbc6 {[%clk 0:02:48.8]} 12. Nxc6 {[%clk 0:02:16.1]} 12... bxc6 {[%clk
0:02:45.6]} 13. h4 {[%clk 0:02:14.4]} 13... Qa5 {[%clk 0:02:33.1]} 14. hxg5
{[%clk 0:02:09.5]} 14... hxg5 {[%clk 0:02:31.9]} 15. Rxh8+ {[%clk 0:02:07.6]}
15... Bxh8 {[%clk 0:02:32]} 16. Nd1 {[%clk 0:01:35.3]} 16... Qxd2+ {[%clk
0:02:16.5]} 17. Kxd2 {[%clk 0:01:34.7]} 17... Rb8 {[%clk 0:02:17.1]} 18. c3
{[%clk 0:01:31.8]} 18... Be6 {[%clk 0:02:15]} 19. b3 {[%clk 0:01:28.8]} 19... a5
{[%clk 0:02:13.8]} 20. Ne3 {[%clk 0:01:00.6]} 20... Kd7 {[%clk 0:02:05.7]} 21.
Rb1 {[%clk 0:00:53.3]} 21... Bf6 {[%clk 0:01:54.5]} 22. c4 {[%clk 0:00:50.2]}
22... Ng6 {[%clk 0:01:41]} 23. Bg4 {[%clk 0:00:43.5]} 23... Bd4 {[%clk
0:01:38.9]} 24. Bxe6+ {[%clk 0:00:42.1]} 24... Kxe6 {[%clk 0:01:38.4]} 25. Kd3
{[%clk 0:00:34.1]} 25... Bc5 {[%clk 0:01:30.1]} 26. Rh1 {[%clk 0:00:25.5]} 26...
a4 {[%clk 0:01:27]} 27. Kc2 {[%clk 0:00:24.8]} 27... axb3+ {[%clk 0:01:23.2]}
28. axb3 {[%clk 0:00:25.7]} 28... Bxe3 {[%clk 0:01:22.8]} 29. fxe3 {[%clk
0:00:25.3]} 29... c5 {[%clk 0:01:19.6]} 30. Ra1 {[%clk 0:00:21.1]} 30... Rb7
{[%clk 0:01:14.9]} 31. Kc3 {[%clk 0:00:21]} 31... Ne5 {[%clk 0:01:12.8]} 32.
Bxe5 {[%clk 0:00:20.6]} 32... Kxe5 {[%clk 0:01:12.3]} 33. Rf1 {[%clk 0:00:20.6]}
33... f6 {[%clk 0:01:08.9]} 34. Rf3 {[%clk 0:00:14]} 34... Kxe4 {[%clk 0:01:08]}
35. Rg3 {[%clk 0:00:13.5]} 35... Ra7 {[%clk 0:01:05.2]} 36. Rh3 {[%clk
0:00:09.2]} 36... g4 {[%clk 0:01:02.1]} 37. Rg3 {[%clk 0:00:07.4]} 37... f5
{[%clk 0:01:01.1]} 38. Kb2 {[%clk 0:00:07.3]} 38... e6 {[%clk 0:00:52.6]} 39.
Kb1 {[%clk 0:00:05.8]} 39... Rh7 {[%clk 0:00:50.4]} 40. Kb2 {[%clk 0:00:04.1]}
40... Rh1 {[%clk 0:00:50.3]} 41. Kc2 {[%clk 0:00:04]} 41... Re1 {[%clk
0:00:49.4]} 42. Kd2 {[%clk 0:00:04.1]} 42... Ra1 {[%clk 0:00:49.2]} 43. Kc3
{[%clk 0:00:04.1]} 43... Ra2 {[%clk 0:00:49.1]} 44. b4 {[%clk 0:00:04.6]} 44...
Ra3+ {[%clk 0:00:48]} 45. Kb2 {[%clk 0:00:04.8]} 45... cxb4 {[%clk 0:00:47.9]}
0-1